[Event "Early-Titled-Tuesday-Blitz-January-23-2024"]
[Site "Chess.com"]
[Date "2024.01.23"]
[Round "3"]
[White "Let_it_be_1"]
[Black "TioCridineno"]
[Result "1/2-1/2"]
[WhiteElo "2584"]
[BlackElo "2418"]
[TimeControl "180+1"]
[EndTime "8:28:20 PST"]
[Termination "Game drawn by repetition"]

1. e4 {[%clk 0:02:58.7]} 1... c5 {[%clk 0:03:00.1]} 2. Nf3 {[%clk 0:02:57.6]}
2... Nc6 {[%clk 0:03:00.6]} 3. d4 {[%clk 0:02:57.9]} 3... cxd4 {[%clk
0:03:00.9]} 4. Nxd4 {[%clk 0:02:58.6]} 4... Nf6 {[%clk 0:03:01.4]} 5. Nc3 {[%clk
0:02:58.5]} 5... e5 {[%clk 0:03:02]} 6. Ndb5 {[%clk 0:02:58.8]} 6... d6 {[%clk
0:03:02.2]} 7. Bg5 {[%clk 0:02:58.8]} 7... a6 {[%clk 0:03:02]} 8. Na3 {[%clk
0:02:58.5]} 8... b5 {[%clk 0:03:02.4]} 9. Nd5 {[%clk 0:02:58.1]} 9... Be7 {[%clk
0:03:02.5]} 10. Bxf6 {[%clk 0:02:58.5]} 10... Bxf6 {[%clk 0:03:03.1]} 11. c3
{[%clk 0:02:59.4]} 11... O-O {[%clk 0:03:02.7]} 12. Nc2 {[%clk 0:02:59.1]} 12...
Bg5 {[%clk 0:03:03]} 13. a4 {[%clk 0:02:58.1]} 13... bxa4 {[%clk 0:03:03.1]} 14.
Nce3 {[%clk 0:02:58.3]} 14... Bxe3 {[%clk 0:03:01.1]} 15. Nxe3 {[%clk
0:02:57.5]} 15... a5 {[%clk 0:03:01.1]} 16. Qxa4 {[%clk 0:02:56.8]} 16... Ne7
{[%clk 0:02:58.7]} 17. Bc4 {[%clk 0:02:48.8]} 17... Be6 {[%clk 0:02:53.7]} 18.
O-O {[%clk 0:02:45.7]} 18... Qc7 {[%clk 0:02:49.3]} 19. Rfd1 {[%clk 0:02:39.3]}
19... h6 {[%clk 0:02:46.5]} 20. h3 {[%clk 0:02:32.5]} 20... Rfc8 {[%clk
0:02:39.5]} 21. Bxe6 {[%clk 0:02:10.9]} 21... fxe6 {[%clk 0:02:37]} 22. Rd2
{[%clk 0:02:10.7]} 22... Ra6 {[%clk 0:02:31.8]} 23. Rd3 {[%clk 0:02:00.5]} 23...
Qc6 {[%clk 0:02:25.5]} 24. b4 {[%clk 0:01:50.4]} 24... Qxa4 {[%clk 0:02:08.9]}
25. Rxa4 {[%clk 0:01:49.9]} 25... Rca8 {[%clk 0:01:02.9]} 26. bxa5 {[%clk
0:01:46.1]} 26... Rxa5 {[%clk 0:01:02.8]} 27. Rxa5 {[%clk 0:01:45]} 27... Rxa5
{[%clk 0:01:03.6]} 28. Rxd6 {[%clk 0:01:45.3]} 28... Kf7 {[%clk 0:01:02.5]} 29.
Rd7 {[%clk 0:01:36.3]} 29... Kf6 {[%clk 0:01:01.2]} 30. Kh2 {[%clk 0:01:27]}
30... h5 {[%clk 0:01:00.3]} 31. h4 {[%clk 0:01:25.1]} 31... Ng6 {[%clk 0:00:56]}
32. g3 {[%clk 0:01:21]} 32... Ne7 {[%clk 0:00:45]} 33. Kg2 {[%clk 0:01:19.5]}
33... Rc5 {[%clk 0:00:40.7]} 34. c4 {[%clk 0:01:18.7]} 34... Rc8 {[%clk
0:00:33]} 35. g4 {[%clk 0:01:08]} 35... g6 {[%clk 0:00:18.5]} 36. Kg3 {[%clk
0:00:49.7]} 36... Kf7 {[%clk 0:00:18.4]} 37. g5 {[%clk 0:00:43.2]} 37... Ke8
{[%clk 0:00:18.5]} 38. Rd6 {[%clk 0:00:41.7]} 38... Kf7 {[%clk 0:00:18.2]} 39.
Ra6 {[%clk 0:00:40]} 39... Rc7 {[%clk 0:00:18]} 40. Ra5 {[%clk 0:00:37.4]} 40...
Nc6 {[%clk 0:00:17.8]} 41. Rc5 {[%clk 0:00:37.4]} 41... Ke7 {[%clk 0:00:18.2]}
42. Rb5 {[%clk 0:00:31.3]} 42... Kd6 {[%clk 0:00:18.1]} 43. c5+ {[%clk 0:00:28]}
43... Kd7 {[%clk 0:00:18]} 44. Nc4 {[%clk 0:00:27.4]} 44... Ra7 {[%clk
0:00:17.1]} 45. f3 {[%clk 0:00:22.6]} 45... Ra4 {[%clk 0:00:17]} 46. Rb7+ {[%clk
0:00:21.9]} 46... Kc8 {[%clk 0:00:15.6]} 47. Nb6+ {[%clk 0:00:18]} 47... Kxb7
{[%clk 0:00:15.3]} 48. Nxa4 {[%clk 0:00:18.6]} 48... Nd4 {[%clk 0:00:15.1]} 49.
Nb2 {[%clk 0:00:12.9]} 49... Kc6 {[%clk 0:00:15.3]} 50. Nc4 {[%clk 0:00:13.1]}
50... Ne2+ {[%clk 0:00:12.8]} 51. Kf2 {[%clk 0:00:12.9]} 51... Nf4 {[%clk
0:00:12.3]} 52. Nxe5+ {[%clk 0:00:13.1]} 52... Kxc5 {[%clk 0:00:13]} 53. Kg3
{[%clk 0:00:13.5]} 53... Ne2+ {[%clk 0:00:12.7]} 54. Kf2 {[%clk 0:00:13.4]}
54... Nf4 {[%clk 0:00:13.2]} 55. Ke3 {[%clk 0:00:10.1]} 55... Ng2+ {[%clk
0:00:13.3]} 56. Kf2 {[%clk 0:00:10.3]} 56... Nf4 {[%clk 0:00:13.4]} 1/2-1/2

[Event "Early-Titled-Tuesday-Blitz-January-23-2024"]
[Site "Chess.com"]
[Date "2024.01.23"]
[Round "3"]
[White "hawes33"]
[Black "Shuvalov"]
[Result "1-0"]
[WhiteElo "2279"]
[BlackElo "2456"]
[TimeControl "180+1"]
[EndTime "8:28:20 PST"]
[Termination "hawes33 won by resignation"]

1. e4 {[%clk 0:02:54.8]} 1... e6 {[%clk 0:02:56.1]} 2. Nf3 {[%clk 0:02:53.1]}
2... d5 {[%clk 0:02:55.8]} 3. e5 {[%clk 0:02:53.5]} 3... c5 {[%clk 0:02:55.8]}
4. b4 {[%clk 0:02:54.1]} 4... cxb4 {[%clk 0:02:55.9]} 5. a3 {[%clk 0:02:54.3]}
5... bxa3 {[%clk 0:02:55.5]} 6. Bxa3 {[%clk 0:02:55.2]} 6... Bxa3 {[%clk
0:02:53.2]} 7. Nxa3 {[%clk 0:02:56.1]} 7... Bd7 {[%clk 0:02:52]} 8. d4 {[%clk
0:02:55.6]} 8... Ne7 {[%clk 0:02:50.8]} 9. Bd3 {[%clk 0:02:56.2]} 9... h6 {[%clk
0:02:50.8]} 10. O-O {[%clk 0:02:55.2]} 10... a6 {[%clk 0:02:49.9]} 11. c4 {[%clk
0:02:46.3]} 11... Nbc6 {[%clk 0:02:48.4]} 12. cxd5 {[%clk 0:02:44.5]} 12... exd5
{[%clk 0:02:47.4]} 13. Qb3 {[%clk 0:02:40.9]} 13... Na5 {[%clk 0:02:41.5]} 14.
Qb4 {[%clk 0:02:38.3]} 14... O-O {[%clk 0:02:36]} 15. Rab1 {[%clk 0:02:27.9]}
15... b5 {[%clk 0:02:33.2]} 16. Rfc1 {[%clk 0:02:01.1]} 16... Nc4 {[%clk
0:02:32.4]} 17. Nxc4 {[%clk 0:01:59.1]} 17... dxc4 {[%clk 0:02:26.6]} 18. Be4
{[%clk 0:01:58.8]} 18... Bf5 {[%clk 0:02:24.7]} 19. Bxa8 {[%clk 0:01:55.2]}
19... Bxb1 {[%clk 0:02:23.8]} 20. Rxb1 {[%clk 0:01:56.1]} 20... Qxa8 {[%clk
0:02:17.4]} 21. Qxe7 {[%clk 0:01:55.2]} 21... c3 {[%clk 0:02:15.1]} 22. Qb4
{[%clk 0:01:52.5]} 22... Rc8 {[%clk 0:02:12.6]} 23. Rc1 {[%clk 0:01:52.6]} 23...
c2 {[%clk 0:02:12.8]} 24. Ne1 {[%clk 0:01:48.4]} 24... Qe4 {[%clk 0:02:12.1]}
25. Qd2 {[%clk 0:01:41.2]} 25... Rd8 {[%clk 0:02:06.7]} 26. Nxc2 {[%clk
0:01:39.3]} 26... Qxe5 {[%clk 0:02:01.9]} 27. Re1 {[%clk 0:01:37.4]} 27... Qd5
{[%clk 0:01:57.6]} 28. h3 {[%clk 0:01:36.9]} 28... Qa2 {[%clk 0:01:55.6]} 29.
Qc3 {[%clk 0:01:32.9]} 29... a5 {[%clk 0:01:52.4]} 30. Ra1 {[%clk 0:01:29.8]}
30... Qe6 {[%clk 0:01:44.1]} 31. Qxa5 {[%clk 0:01:26.2]} 31... Rc8 {[%clk
0:01:40.5]} 32. Ne3 {[%clk 0:01:25.3]} 32... Qb3 {[%clk 0:01:34.1]} 33. d5
{[%clk 0:01:19.4]} 33... b4 {[%clk 0:01:27.4]} 34. d6 {[%clk 0:01:19.4]} 34...
Qd3 {[%clk 0:01:24.8]} 35. Qxb4 {[%clk 0:01:16.2]} 35... Rd8 {[%clk 0:01:24.2]}
36. Rd1 {[%clk 0:01:15.3]} 36... Qg6 {[%clk 0:01:22.8]} 37. d7 {[%clk
0:01:13.9]} 37... Qe6 {[%clk 0:01:19.3]} 38. Qb7 {[%clk 0:01:07.3]} 38... Kh7
{[%clk 0:01:15.5]} 39. Qc7 {[%clk 0:01:04.3]} 39... Qf6 {[%clk 0:01:14]} 40.
Qc2+ {[%clk 0:00:58.1]} 40... g6 {[%clk 0:01:13.4]} 41. Qc7 {[%clk 0:00:55.9]}
41... h5 {[%clk 0:01:11.3]} 42. Rd6 {[%clk 0:00:54.6]} 42... Qe7 {[%clk
0:01:10.2]} 43. g3 {[%clk 0:00:50.5]} 43... Kg7 {[%clk 0:01:04.6]} 44. Qc3+
{[%clk 0:00:35.2]} 44... Kh7 {[%clk 0:01:04.3]} 45. Qd4 {[%clk 0:00:35.4]} 45...
Kg8 {[%clk 0:00:58.6]} 46. Qc5 {[%clk 0:00:20.2]} 46... Kh7 {[%clk 0:00:51.3]}
47. Qc7 {[%clk 0:00:20]} 47... Kg7 {[%clk 0:00:49]} 48. Kh2 {[%clk 0:00:20]}
48... Kh7 {[%clk 0:00:47]} 49. Nd5 {[%clk 0:00:20.2]} 49... Qe2 {[%clk
0:00:38.2]} 50. Rf6 {[%clk 0:00:20.3]} 50... h4 {[%clk 0:00:17.9]} 51. Qxd8
{[%clk 0:00:17.9]} 51... hxg3+ {[%clk 0:00:17.5]} 52. Kxg3 {[%clk 0:00:18.8]}
52... Qe5+ {[%clk 0:00:16.9]} 53. Nf4 {[%clk 0:00:15.6]} 53... Qg5+ {[%clk
0:00:15.9]} 54. Kf3 {[%clk 0:00:15.4]} 54... Kg7 {[%clk 0:00:12.9]} 55. Rxf7+
{[%clk 0:00:15.2]} 55... Kxf7 {[%clk 0:00:13.1]} 56. Qxg5 {[%clk 0:00:15.8]} 1-0

[Event "Early-Titled-Tuesday-Blitz-January-23-2024"]
[Site "Chess.com"]
[Date "2024.01.23"]
[Round "3"]
[White "Yeritsyaan"]
[Black "colegiodemadrid"]
[Result "1-0"]
[WhiteElo "2646"]
[BlackElo "2468"]
[TimeControl "180+1"]
[EndTime "8:28:24 PST"]
[Termination "Yeritsyaan won by resignation"]

1. c4 {[%clk 0:02:58.1]} 1... Nf6 {[%clk 0:02:58.3]} 2. Nc3 {[%clk 0:02:57.5]}
2... e6 {[%clk 0:02:58]} 3. e4 {[%clk 0:02:57.4]} 3... d5 {[%clk 0:02:57.5]} 4.
cxd5 {[%clk 0:02:56.9]} 4... exd5 {[%clk 0:02:58.4]} 5. e5 {[%clk 0:02:57.3]}
5... d4 {[%clk 0:02:53]} 6. exf6 {[%clk 0:02:55.2]} 6... dxc3 {[%clk 0:02:53.2]}
7. bxc3 {[%clk 0:02:52.8]} 7... Qxf6 {[%clk 0:02:51.2]} 8. d4 {[%clk 0:02:52.7]}
8... Bd6 {[%clk 0:02:48.5]} 9. Nf3 {[%clk 0:02:49.8]} 9... h6 {[%clk 0:02:48.2]}
10. Bb5+ {[%clk 0:02:47]} 10... Bd7 {[%clk 0:02:45]} 11. Qe2+ {[%clk 0:02:46.1]}
11... Qe7 {[%clk 0:02:44.3]} 12. Qxe7+ {[%clk 0:02:45]} 12... Kxe7 {[%clk
0:02:42.7]} 13. Bd3 {[%clk 0:02:39.4]} 13... Re8 {[%clk 0:02:36.5]} 14. O-O
{[%clk 0:02:34.9]} 14... Kf8 {[%clk 0:02:35.6]} 15. Bd2 {[%clk 0:02:32.1]} 15...
Bc6 {[%clk 0:02:34.7]} 16. Rfe1 {[%clk 0:02:27.8]} 16... Nd7 {[%clk 0:02:32.7]}
17. c4 {[%clk 0:02:25.1]} 17... Bxf3 {[%clk 0:02:28.5]} 18. gxf3 {[%clk
0:02:26]} 18... b6 {[%clk 0:02:28.6]} 19. Be4 {[%clk 0:02:16.5]} 19... Rad8
{[%clk 0:02:27]} 20. a4 {[%clk 0:02:13.9]} 20... c5 {[%clk 0:02:21.6]} 21. d5
{[%clk 0:01:55.9]} 21... Ne5 {[%clk 0:02:21.6]} 22. Rac1 {[%clk 0:01:41.9]}
22... f5 {[%clk 0:02:21.5]} 23. f4 {[%clk 0:01:41.1]} 23... fxe4 {[%clk
0:02:20]} 24. fxe5 {[%clk 0:01:41.3]} 24... Bxe5 {[%clk 0:02:15.3]} 25. Kg2
{[%clk 0:01:36.8]} 25... Bd6 {[%clk 0:01:58.5]} 26. Rc3 {[%clk 0:01:29.2]} 26...
Rd7 {[%clk 0:01:53.6]} 27. a5 {[%clk 0:01:26.4]} 27... Kf7 {[%clk 0:01:47.4]}
28. Rb3 {[%clk 0:01:12.7]} 28... Bc7 {[%clk 0:01:44.6]} 29. a6 {[%clk
0:01:07.9]} 29... Bd6 {[%clk 0:01:41.2]} 30. Bc1 {[%clk 0:00:56.4]} 30... g5
{[%clk 0:01:40.3]} 31. Rbe3 {[%clk 0:00:54.2]} 31... Rde7 {[%clk 0:01:39.7]} 32.
Rh3 {[%clk 0:00:47.8]} 32... Kg6 {[%clk 0:01:39.2]} 33. Bb2 {[%clk 0:00:47.5]}
33... g4 {[%clk 0:01:31.9]} 34. Rhe3 {[%clk 0:00:47]} 34... Bf4 {[%clk 0:01:29]}
35. R3e2 {[%clk 0:00:46.7]} 35... Kf5 {[%clk 0:01:26.7]} 36. Bc3 {[%clk
0:00:43.9]} 36... h5 {[%clk 0:01:23.1]} 37. Rd1 {[%clk 0:00:43.6]} 37... Bd6
{[%clk 0:01:21.6]} 38. Bd2 {[%clk 0:00:33.2]} 38... h4 {[%clk 0:01:17.2]} 39.
Be3 {[%clk 0:00:33.7]} 39... h3+ {[%clk 0:01:16.6]} 40. Kg1 {[%clk 0:00:33.9]}
40... Kg6 {[%clk 0:01:15.1]} 41. Rb1 {[%clk 0:00:31.7]} 41... Kf5 {[%clk
0:01:14.5]} 42. Rb3 {[%clk 0:00:32]} 42... Bf4 {[%clk 0:01:10.3]} 43. Rd2 {[%clk
0:00:20.2]} 43... Rd7 {[%clk 0:01:06.5]} 44. Rb1 {[%clk 0:00:18]} 44... Be5
{[%clk 0:01:05.2]} 45. Re2 {[%clk 0:00:17.5]} 45... Rd6 {[%clk 0:01:04.7]} 46.
Rd1 {[%clk 0:00:17.6]} 46... Bc3 {[%clk 0:01:03.6]} 47. Bc1 {[%clk 0:00:16.3]}
47... Bb4 {[%clk 0:01:02.9]} 48. Bb2 {[%clk 0:00:15.9]} 48... Kf4 {[%clk
0:01:02.2]} 49. Re3 {[%clk 0:00:15.7]} 49... Kf5 {[%clk 0:01:01.7]} 50. Kf1
{[%clk 0:00:15.4]} 50... Re7 {[%clk 0:01:00.6]} 51. Ke2 {[%clk 0:00:16]} 51...
Kg5 {[%clk 0:00:58.4]} 52. Rg1 {[%clk 0:00:14.9]} 52... Kh5 {[%clk 0:00:56.6]}
53. Reg3 {[%clk 0:00:13.9]} 53... Rg6 {[%clk 0:00:56.5]} 54. Ke3 {[%clk
0:00:14.2]} 54... Rf7 {[%clk 0:00:55.5]} 55. Be5 {[%clk 0:00:12.4]} 55... Rf3+
{[%clk 0:00:55.1]} 56. Rxf3 {[%clk 0:00:08.4]} 56... exf3 {[%clk 0:00:52.6]} 57.
d6 {[%clk 0:00:09.1]} 57... Rg8 {[%clk 0:00:50.7]} 58. Bf6 {[%clk 0:00:06.8]}
58... Re8+ {[%clk 0:00:48.6]} 59. Kf4 {[%clk 0:00:07]} 59... Bd2+ {[%clk
0:00:46.5]} 60. Kf5 {[%clk 0:00:07]} 60... Rf8 {[%clk 0:00:42.7]} 61. d7 {[%clk
0:00:06.1]} 61... Bg5 {[%clk 0:00:38.4]} 62. d8=Q {[%clk 0:00:06.5]} 62... Rxf6+
{[%clk 0:00:38.1]} 63. Qxf6 {[%clk 0:00:07.4]} 63... Bxf6 {[%clk 0:00:37.7]} 64.
Kxf6 {[%clk 0:00:08.3]} 64... Kh4 {[%clk 0:00:37.6]} 65. Kf5 {[%clk 0:00:08.6]}
65... b5 {[%clk 0:00:37.9]} 66. Rxg4+ {[%clk 0:00:08.9]} 1-0

[Event "Early-Titled-Tuesday-Blitz-January-23-2024"]
[Site "Chess.com"]
[Date "2024.01.23"]
[Round "3"]
[White "chess_blitz00"]
[Black "Byniolus"]
[Result "0-1"]
[WhiteElo "2466"]
[BlackElo "2851"]
[TimeControl "180+1"]
[EndTime "8:28:25 PST"]
[Termination "Byniolus won on time"]

1. d4 {[%clk 0:03:00.9]} 1... d6 {[%clk 0:03:00.2]} 2. e4 {[%clk 0:02:59.9]}
2... Nf6 {[%clk 0:03:00.2]} 3. Nc3 {[%clk 0:02:58.7]} 3... c6 {[%clk 0:03:00.4]}
4. Be3 {[%clk 0:02:57.3]} 4... Qb6 {[%clk 0:03:00.2]} 5. Rb1 {[%clk 0:02:03.7]}
5... Ng4 {[%clk 0:02:59.5]} 6. Bc4 {[%clk 0:01:42.1]} 6... Nxe3 {[%clk
0:02:52.6]} 7. fxe3 {[%clk 0:01:43]} 7... e6 {[%clk 0:02:53.3]} 8. Qf3 {[%clk
0:01:38.4]} 8... d5 {[%clk 0:02:46.1]} 9. Bb3 {[%clk 0:01:36]} 9... Be7 {[%clk
0:02:39.1]} 10. Nge2 {[%clk 0:01:32.3]} 10... Nd7 {[%clk 0:02:39.3]} 11. O-O
{[%clk 0:01:31.7]} 11... O-O {[%clk 0:02:39.4]} 12. Nf4 {[%clk 0:01:19.5]} 12...
Qd8 {[%clk 0:02:08.4]} 13. Nh5 {[%clk 0:01:06.4]} 13... Nf6 {[%clk 0:01:59.1]}
14. Ng3 {[%clk 0:01:01.5]} 14... g6 {[%clk 0:01:38.5]} 15. Nce2 {[%clk
0:00:42.6]} 15... a5 {[%clk 0:01:30]} 16. c3 {[%clk 0:00:42.6]} 16... b6 {[%clk
0:01:29.6]} 17. Bc2 {[%clk 0:00:40.8]} 17... Ba6 {[%clk 0:01:27.8]} 18. Rf2
{[%clk 0:00:38.2]} 18... c5 {[%clk 0:01:20.8]} 19. e5 {[%clk 0:00:31.5]} 19...
Ne8 {[%clk 0:01:12.4]} 20. Nf4 {[%clk 0:00:15.3]} 20... Ng7 {[%clk 0:01:05.4]}
21. Bd3 {[%clk 0:00:10]} 21... Bxd3 {[%clk 0:00:49.1]} 22. Nxd3 {[%clk
0:00:10.9]} 22... a4 {[%clk 0:00:50]} 23. a3 {[%clk 0:00:10.8]} 23... Qd7 {[%clk
0:00:47.9]} 24. Rbf1 {[%clk 0:00:10.5]} 24... Rac8 {[%clk 0:00:23]} 25. Nf4
{[%clk 0:00:10.8]} 25... f5 {[%clk 0:00:17.6]} 26. exf6 {[%clk 0:00:07.9]} 26...
Bxf6 {[%clk 0:00:16.9]} 27. Qg4 {[%clk 0:00:08]} 27... Qe7 {[%clk 0:00:08.8]}
28. Nd3 {[%clk 0:00:04.6]} 28... Rce8 {[%clk 0:00:06.1]} 29. Ne5 {[%clk
0:00:03.6]} 29... Bxe5 {[%clk 0:00:05.2]} 30. dxe5 {[%clk 0:00:04.5]} 30... Nf5
{[%clk 0:00:05.1]} 31. Nxf5 {[%clk 0:00:04.4]} 31... exf5 {[%clk 0:00:06]} 32.
Rxf5 {[%clk 0:00:04.1]} 32... Rxf5 {[%clk 0:00:06.1]} 33. Rxf5 {[%clk 0:00:05]}
33... Qe6 {[%clk 0:00:05.8]} 34. Rf4 {[%clk 0:00:04.3]} 34... Qxe5 {[%clk
0:00:04.7]} 35. Qf3 {[%clk 0:00:03.8]} 35... Qxe3+ {[%clk 0:00:04.5]} 36. Qxe3
{[%clk 0:00:03]} 36... Rxe3 {[%clk 0:00:05.4]} 37. Rf2 {[%clk 0:00:02.8]} 37...
d4 {[%clk 0:00:03.8]} 38. cxd4 {[%clk 0:00:02.7]} 38... cxd4 {[%clk 0:00:04.7]}
39. Rd2 {[%clk 0:00:03]} 39... Rb3 {[%clk 0:00:04.8]} 40. Kf2 {[%clk 0:00:02.7]}
40... b5 {[%clk 0:00:04.4]} 41. Ke2 {[%clk 0:00:02.8]} 41... Kf7 {[%clk
0:00:04.6]} 42. Kd1 {[%clk 0:00:02.8]} 42... d3 {[%clk 0:00:04.5]} 43. Ke1
{[%clk 0:00:02.7]} 43... Ke6 {[%clk 0:00:04.9]} 44. Kf2 {[%clk 0:00:03.4]} 44...
Kd5 {[%clk 0:00:05.3]} 45. Ke3 {[%clk 0:00:03.9]} 45... Kc4 {[%clk 0:00:06.2]}
46. Rf2 {[%clk 0:00:03.2]} 46... d2+ {[%clk 0:00:05.7]} 47. Ke2 {[%clk
0:00:01.4]} 47... Rxb2 {[%clk 0:00:06.3]} 48. Rf4+ {[%clk 0:00:02]} 48... Kc3
{[%clk 0:00:05.8]} 49. Rf3+ {[%clk 0:00:02.9]} 49... Kc2 {[%clk 0:00:05.8]} 50.
Rd3 {[%clk 0:00:03]} 50... Kc1 {[%clk 0:00:04.3]} 51. Rc3+ {[%clk 0:00:01.9]}
51... Rc2 {[%clk 0:00:04.9]} 0-1

[Event "Early-Titled-Tuesday-Blitz-January-23-2024"]
[Site "Chess.com"]
[Date "2024.01.23"]
[Round "3"]
[White "Nemegejas"]
[Black "GlennTipton"]
[Result "1-0"]
[WhiteElo "2896"]
[BlackElo "2523"]
[TimeControl "180+1"]
[EndTime "8:28:27 PST"]
[Termination "Nemegejas won by checkmate"]

1. d4 {[%clk 0:02:56.5]} 1... d5 {[%clk 0:02:59.4]} 2. c4 {[%clk 0:02:55.7]}
2... c6 {[%clk 0:02:59.7]} 3. Nf3 {[%clk 0:02:54.7]} 3... Nf6 {[%clk 0:02:59.9]}
4. Nbd2 {[%clk 0:02:52.9]} 4... a6 {[%clk 0:02:58.9]} 5. e3 {[%clk 0:02:52.9]}
5... Bg4 {[%clk 0:02:54]} 6. Be2 {[%clk 0:02:51.8]} 6... Nbd7 {[%clk 0:02:51]}
7. O-O {[%clk 0:02:51.9]} 7... e6 {[%clk 0:02:50.2]} 8. b3 {[%clk 0:02:51.9]}
8... Bd6 {[%clk 0:02:45.9]} 9. Bb2 {[%clk 0:02:52.1]} 9... O-O {[%clk 0:02:46]}
10. h3 {[%clk 0:02:51.5]} 10... Bxf3 {[%clk 0:02:43.6]} 11. Bxf3 {[%clk
0:02:51.2]} 11... b5 {[%clk 0:02:42]} 12. Qc2 {[%clk 0:02:48.4]} 12... Rc8
{[%clk 0:02:39.7]} 13. a4 {[%clk 0:02:45.5]} 13... bxc4 {[%clk 0:02:36.7]} 14.
bxc4 {[%clk 0:02:46.4]} 14... c5 {[%clk 0:02:36.8]} 15. dxc5 {[%clk 0:02:39.3]}
15... Nxc5 {[%clk 0:02:32]} 16. cxd5 {[%clk 0:02:37.5]} 16... exd5 {[%clk
0:02:23.8]} 17. Qd1 {[%clk 0:02:23.6]} 17... Nce4 {[%clk 0:02:17.8]} 18. Bxe4
{[%clk 0:02:14.1]} 18... Nxe4 {[%clk 0:02:16.3]} 19. Nxe4 {[%clk 0:02:12.6]}
19... dxe4 {[%clk 0:02:16.1]} 20. Qg4 {[%clk 0:02:01.4]} 20... f6 {[%clk
0:02:06.7]} 21. Qe6+ {[%clk 0:01:50.3]} 21... Kh8 {[%clk 0:02:02.7]} 22. Rad1
{[%clk 0:01:50.4]} 22... Rc6 {[%clk 0:02:01]} 23. Qxe4 {[%clk 0:01:45.6]} 23...
Qc7 {[%clk 0:01:49.6]} 24. Rd5 {[%clk 0:01:19.1]} 24... Rc5 {[%clk 0:01:23.2]}
25. Bd4 {[%clk 0:00:57.5]} 25... Rxd5 {[%clk 0:01:13.2]} 26. Qxd5 {[%clk
0:00:58.4]} 26... Rd8 {[%clk 0:01:11.3]} 27. Qf5 {[%clk 0:00:37.5]} 27... Qe7
{[%clk 0:00:51.5]} 28. Rc1 {[%clk 0:00:34]} 28... Be5 {[%clk 0:00:37.3]} 29.
Bxe5 {[%clk 0:00:31.5]} 29... fxe5 {[%clk 0:00:37.3]} 30. Rc8 {[%clk 0:00:22.2]}
30... h6 {[%clk 0:00:25.3]} 31. Kh2 {[%clk 0:00:16.8]} 31... Rxc8 {[%clk
0:00:17.1]} 32. Qxc8+ {[%clk 0:00:17.7]} 32... Kh7 {[%clk 0:00:17.8]} 33. Qxa6
{[%clk 0:00:18.1]} 33... Qf7 {[%clk 0:00:15.7]} 34. Qd3+ {[%clk 0:00:16.2]}
34... g6 {[%clk 0:00:14.9]} 35. Kg1 {[%clk 0:00:12.4]} 35... Qa7 {[%clk
0:00:13.3]} 36. Qb5 {[%clk 0:00:11.8]} 36... e4 {[%clk 0:00:11.3]} 37. a5 {[%clk
0:00:09.8]} 37... Qc7 {[%clk 0:00:09.5]} 38. g3 {[%clk 0:00:05.2]} 38... Qd6
{[%clk 0:00:07.3]} 39. Kg2 {[%clk 0:00:04.5]} 39... Qf6 {[%clk 0:00:06.3]} 40.
Qb7+ {[%clk 0:00:04.7]} 40... Kg8 {[%clk 0:00:06.7]} 41. Qxe4 {[%clk 0:00:05.2]}
41... Qa1 {[%clk 0:00:07.4]} 42. Qd5+ {[%clk 0:00:04.5]} 42... Kf8 {[%clk
0:00:07.6]} 43. Qa8+ {[%clk 0:00:04]} 43... Kg7 {[%clk 0:00:07.4]} 44. Qb7+
{[%clk 0:00:04.9]} 44... Kf6 {[%clk 0:00:07.6]} 45. a6 {[%clk 0:00:05.8]} 45...
g5 {[%clk 0:00:07.1]} 46. a7 {[%clk 0:00:06]} 46... g4 {[%clk 0:00:08]} 47. hxg4
{[%clk 0:00:05.9]} 47... h5 {[%clk 0:00:07.9]} 48. gxh5 {[%clk 0:00:05.7]} 48...
Kg5 {[%clk 0:00:08.2]} 49. a8=Q {[%clk 0:00:05.3]} 49... Kxh5 {[%clk 0:00:09.1]}
50. Qxa1 {[%clk 0:00:04.8]} 50... Kg4 {[%clk 0:00:10]} 51. Qd4+ {[%clk
0:00:04.9]} 51... Kf5 {[%clk 0:00:10.4]} 52. Qf7+ {[%clk 0:00:05.2]} 52... Kg5
{[%clk 0:00:10.7]} 53. Qdf4# {[%clk 0:00:05.8]} 1-0